bitfinex/quotes_SOLUSD_20250301
["timestamp","ask_amount","ask_price","bid_price","bid_amount"]
[1740787544275,1.69851363,147.68,147.66,217.4419875]
[1740787544471,11.535,147.74,147.66,217.4419875]
[1740787544472,1.69851363,147.69,147.66,217.4419875]
[1740787544683,1.69851363,147.69,147.67,6.12]
[1740787545189,1.69851363,147.69,147.67,223.5319875]
[1740787545711,1.69851363,147.69,147.67,228.9490875]
[1740787546106,7.11361363,147.74,147.67,228.9490875]
[1740787546614,1.69851363,147.74,147.67,228.9490875]
[1740787547195,1.69851363,147.74,147.67,242.4927875]
[1740787547395,1.69851363,147.73,147.67,242.4927875]
[1740787547914,1.69851363,147.73,147.67,244.4927875]
[1740787548208,1.69851363,147.73,147.68,1.42133716]
[1740787548413,1.69851363,147.73,147.71,20.0]
[1740787548616,0.063,147.76,147.75,20.0]
[1740787548823,0.063,147.76,147.75,237.4119875]
[1740787549421,0.063,147.76,147.75,258.06163636]
[1740787549792,0.063,147.76,147.75,237.4119875]
[1740787549996,0.063,147.76,147.75,242.8264875]
[1740787550419,0.063,147.76,147.75,246.23005983]
[1740787552815,0.063,147.76,147.75,240.81555983]
[1740787553018,0.063,147.76,147.75,79.4119875]
[1740787553208,0.063,147.76,147.72,85.5319875]
[1740787558110,0.063,147.76,147.72,6.12]
[1740787558318,0.063,147.76,147.7,79.4119875]
[1740787560215,0.063,147.76,147.7,84.8281875]
[1740787560601,0.063,147.76,147.7,217.4119875]
[1740787561127,0.063,147.76,147.69,6.12]
[1740787561325,0.063,147.76,147.69,85.5319875]
[1740787567514,0.063,147.76,147.69,90.9486875]
[1740787568741,0.063,147.76,147.69,228.9486875]
[1740787568921,0.063,147.76,147.69,242.4904875]
[1740787569326,0.063,147.76,147.72,20.0]
[1740787569511,0.063,147.76,147.72,237.4119875]
[1740787570512,0.063,147.76,147.72,242.8273875]
[1740787571334,0.063,147.76,147.72,246.17134257]
[1740787572133,4.5387,147.8,147.72,246.17134257]
[1740787572825,4.5387,147.8,147.72,240.75594257]
[1740787573430,4.5387,147.8,147.69,28.0894]
[1740787573431,82.7,147.79,147.69,79.4119875]
[1740787573645,99.34964886,147.78,147.69,79.4119875]
[1740787574529,18.9483,147.77,147.69,79.4119875]
[1740787575311,7.9814,147.76,147.69,79.4119875]
[1740787575532,88.6814,147.76,147.69,79.4119875]
[1740787576319,80.7,147.76,147.69,84.8285875]
[1740787576520,5.413,147.79,147.69,222.8285875]
[1740787576713,5.413,147.79,147.72,20.0]
[1740787576943,13.3942,147.8,147.73,6.12]
[1740787577848,7.9814,147.8,147.73,85.5319875]
[1740787578050,5.412,147.82,147.73,85.5319875]
[1740787578224,5.412,147.82,147.73,223.5319875]
[1740787578425,5.4117,147.83,147.73,223.5319875]
[1740787578826,5.4117,147.83,147.74,5.4149]
[1740787579139,94.0927,147.84,147.74,5.4149]
[1740787579344,7.9814,147.84,147.77,20.0]
[1740787579533,7.9814,147.84,147.78,6.12]
[1740787579846,0.063,147.85,147.78,6.12]
[1740787580348,0.063,147.85,147.78,85.5319875]
[1740787580739,0.063,147.85,147.79,5.413]
[1740787581044,0.063,147.85,147.78,85.5319875]
[1740787581445,0.063,147.85,147.78,90.9453875]
[1740787581617,0.063,147.85,147.78,228.9453875]
[1740787582629,0.063,147.85,147.78,242.4789875]
[1740787583140,0.063,147.84,147.78,242.4789875]
[1740787583545,0.063,147.84,147.81,20.0]
[1740787583756,0.063,147.84,147.81,79.4119875]
[1740787585233,0.063,147.84,147.81,84.8241875]
[1740787585938,0.063,147.84,147.81,79.4119875]
[1740787587171,0.063,147.84,147.81,84.8241875]
[1740787587965,0.063,147.84,147.83,20.0]
[1740787588264,0.063,147.84,147.83,26.12]
[1740787589741,0.063,147.84,147.81,79.4119875]
[1740787590262,0.063,147.84,147.81,84.8241875]
[1740787590466,0.063,147.84,147.83,20.0]
[1740787590847,0.063,147.84,147.83,237.4119875]
[1740787591371,0.063,147.84,147.83,265.78533636]
[1740787591534,0.063,147.85,147.84,20.64964886]
[1740787591741,0.063,147.91,147.87,22.0]
[1740787591939,0.063,147.91,147.9,20.0]
[1740787592170,0.063,147.91,147.9,242.8209875]
[1740787592344,0.063,147.91,147.9,237.4119875]
[1740787593041,0.063,147.91,147.9,242.8209875]
[1740787593636,0.063,147.91,147.9,263.47063636]
[1740787595662,0.063,147.95,147.94,20.0]
[1740787595856,0.063,147.95,147.94,243.5319875]
[1740787597642,0.063,147.95,147.94,248.9394875]
[1740787598068,0.063,147.95,147.94,267.58913636]
[1740787598266,0.063,148.0,147.99,20.0]
[1740787598443,0.063,148.0,147.99,243.5319875]
[1740787599556,0.063,148.0,147.99,248.9376875]
[1740787601162,0.063,148.0,147.99,267.58733636]
[1740787601540,0.063,148.0,147.99,269.13163636]
[1740787601758,0.063,148.0,147.99,277.62573636]
[1740787602580,0.063,148.0,147.99,217.4119875]
[1740787603748,0.063,148.0,147.99,222.8176875]
[1740787604767,0.063,148.0,147.99,243.46733636]
[1740787604963,0.0001,148.0,147.99,243.46733636]
[1740787607573,0.063,148.09,148.01,20.0]
[1740787607876,0.063,148.09,148.07,18.64964886]
[1740787608046,0.063,148.09,148.08,44.76964886]
[1740787608449,0.063,148.09,148.08,26.12]
[1740787609549,0.063,148.09,148.08,31.5224]
[1740787611168,0.063,148.09,148.07,220.74010585]
[1740787611169,0.063,148.09,148.07,79.4119875]
[1740787611969,0.063,148.09,148.04,6.1]
[1740787614767,0.063,148.09,148.04,11.5039]
[1740787615574,0.063,148.09,148.04,6.1]
[1740787616172,20.71264886,148.09,147.99,5.4057]
[1740787616365,20.0,148.06,147.99,79.4119875]
[1740787616576,18.64964886,148.06,147.99,79.4119875]
[1740787616759,20.0,148.05,147.99,79.4119875]
[1740787617259,7.7882,148.04,147.99,79.4119875]
[1740787617475,13.1921,148.04,147.99,79.4119875]
[1740787618482,13.1921,148.04,147.99,79.4419875]
[1740787620281,7.7882,148.04,147.99,84.8475875]
[1740787620876,0.063,148.06,147.99,222.8475875]
[1740787621795,0.063,148.06,147.99,236.3619875]
[1740787622987,0.063,148.06,148.03,25.4043]
[1740787623176,0.063,148.06,148.03,110.9162875]
[1740787623679,0.063,148.06,148.03,6.1]
[1740787626194,0.063,148.06,148.01,217.4119875]
[1740787626383,0.063,148.06,148.01,222.8169875]
[1740787627190,0.063,148.06,148.01,236.3295875]
[1740787629386,0.063,148.06,148.01,217.4119875]
[1740787629591,0.063,148.06,148.01,79.4119875]
[1740787630112,0.063,148.06,148.01,84.8168875]
[1740787631807,0.063,148.06,148.01,79.4119875]
[1740787632097,20.64964886,148.04,147.99,0.03]
[1740787632402,1.518,148.02,147.99,0.03]
[1740787632613,21.518,148.02,147.99,0.03]
[1740787632777,1.518,148.02,147.99,0.03]
[1740787634209,6.9227,148.02,147.99,0.03]
[1740787635591,101.34964886,148.01,147.99,0.03]
[1740787635901,18.64964886,147.99,147.92,79.4119875]
[1740787636100,18.64964886,147.99,147.91,6.1]
[1740787636101,5.4061,147.98,147.91,6.1]
[1740787636286,5.4061,147.98,147.9,79.4119875]
[1740787636484,1.518,147.96,147.9,79.4119875]
[1740787636803,1.518,147.96,147.9,84.8208875]
[1740787637389,1.518,147.96,147.9,79.4119875]
[1740787638196,5.4072,147.95,147.9,79.4119875]
[1740787638378,5.4072,147.95,147.88,85.5119875]
[1740787638582,5.4072,147.95,147.87,138.0]
[1740787638583,6.5102,147.93,147.86,85.5119875]
[1740787638784,6.5102,147.93,147.84,79.4419875]
[1740787638785,18.64964886,147.92,147.84,79.4419875]
[1740787638987,18.64964886,147.92,147.84,90.9530875]
[1740787640604,5.4086,147.91,147.84,90.9530875]
[1740787643806,24.05804886,147.92,147.84,90.9530875]
[1740787644495,87.2102,147.93,147.84,104.4811875]
[1740787644699,92.6182,147.93,147.84,104.4811875]
[1740787645793,24.05794886,147.92,147.84,90.9530875]
[1740787646298,5.4083,147.92,147.84,90.9530875]
[1740787647002,92.6182,147.93,147.84,90.9530875]
[1740787650006,18.64964886,147.92,147.84,79.4419875]
[1740787650204,1.5871,147.91,147.84,79.4419875]
[1740787650511,99.34964886,147.9,147.84,0.03]
[1740787652299,18.64964886,147.88,147.84,0.03]
[1740787652494,5.4091,147.9,147.84,20.03]
[1740787655218,5.4091,147.9,147.84,25.4411]
[1740787656191,5.4091,147.9,147.84,104.8530875]
[1740787659410,1.5871,147.91,147.84,118.3811875]
[1740787659601,1.5871,147.91,147.84,256.3811875]
[1740787662610,1.5871,147.91,147.84,242.8530875]
[1740787662834,18.64964886,147.9,147.84,6.15]
[1740787663194,6.9959,147.91,147.84,6.15]
[1740787663406,6.9959,147.91,147.84,11.5612]
[1740787664505,23.6398,147.94,147.87,20.0]
[1740787664506,80.7,147.94,147.87,20.0]
[1740787664703,1.5547,147.95,147.87,99.4119875]
[1740787665814,6.962,147.95,147.88,5.4097]
[1740787666010,6.0552,147.97,147.89,6.12]
[1740787666210,5.4065,147.97,147.89,223.5319875]
[1740787667127,5.4065,147.97,147.9,5.409]
[1740787667515,5.4065,147.97,147.89,228.9411875]
[1740787667821,5.4065,147.97,147.89,232.36956671]
[1740787669994,37.57234886,147.97,147.89,226.96036671]
[1740787671097,37.57234886,147.97,147.89,94.36966671]
[1740787672221,18.64964886,147.96,147.89,82.84036671]
[1740787672517,101.34964886,147.96,147.87,85.5319875]
[1740787672921,18.64964886,147.94,147.87,6.12]
[1740787673128,18.64964886,147.92,147.87,6.12]
[1740787673308,20.22534886,147.92,147.87,6.12]
[1740787673511,102.92534886,147.92,147.84,79.4419875]
[1740787673711,18.9303,147.91,147.84,79.4419875]
[1740787674117,82.2757,147.92,147.84,84.8530875]
[1740787674440,80.7,147.92,147.84,84.8530875]
[1740787675012,20.64964886,147.9,147.84,0.03]
[1740787675910,5.4094,147.89,147.84,0.03]
[1740787676100,86.1094,147.89,147.84,0.03]
[1740787676502,86.1094,147.89,147.87,0.03]
[1740787682830,18.64964886,147.88,147.87,0.03]
[1740787683234,86.1094,147.89,147.87,0.03]
[1740787684832,5.4094,147.89,147.87,0.03]
[1740787686130,5.409,147.9,147.87,0.03]
[1740787687144,37.58124886,147.9,147.87,0.03]
[1740787689932,5.4097,147.88,147.87,0.03]
[1740787692325,5.4097,147.88,147.84,0.03]
[1740787692526,18.64964886,147.86,147.84,0.03]
[1740787693739,108.76044886,147.85,147.84,0.0001]
[1740787694049,28.06044886,147.85,147.84,0.0001]
[1740787694435,33.64582596,147.85,147.84,0.0001]
[1740787696347,20.0,147.82,147.81,0.0001]
[1740787696949,18.938,147.85,147.81,0.0001]
[1740787699451,5.4101,147.87,147.81,1.563]
[1740787699648,113.98,147.91,147.81,80.9749875]
[1740787699852,15.94182427,147.93,147.85,6.3251]
[1740787700064,15.94182427,147.93,147.86,6.12]
[1740787700065,10.53382427,147.93,147.86,6.12]
[1740787700438,15.94182427,147.93,147.86,6.12]
[1740787700932,99.34964886,147.95,147.86,6.12]
[1740787701132,24.05714886,147.94,147.86,6.12]
[1740787702635,39.57604886,147.94,147.86,6.12]
[1740787703148,37.57604886,147.94,147.86,6.12]
[1740787703330,24.05714886,147.94,147.86,11.5305]
[1740787703535,5.4075,147.94,147.86,11.5305]
[1740787703750,5.4075,147.94,147.86,90.9424875]
[1740787705252,86.1073,147.95,147.87,1.537]
[1740787705457,99.6253,147.95,147.87,1.537]
[1740787706958,99.6253,147.95,147.87,6.947]
[1740787707154,86.1073,147.95,147.87,6.947]
[1740787707538,5.4069,147.96,147.87,99.8842875]
[1740787707858,20.0,147.98,147.91,6.4904]
[1740787708051,20.0,147.98,147.92,6.12]
[1740787708549,0.063,147.99,147.92,6.12]
[1740787708851,5.4061,147.98,147.92,6.12]
[1740787709348,0.063,147.99,147.92,6.12]
[1740787709349,5.4687,147.99,147.92,6.12]
[1740787711854,18.9831,147.99,147.92,6.12]
[1740787712555,18.9831,147.99,147.92,85.5319875]
[1740787713071,5.4687,147.99,147.93,1.546]
[1740787713441,5.4687,147.99,147.94,5.4075]
[1740787713442,0.063,147.99,147.94,5.4075]
[1740787713642,0.063,147.99,147.94,84.8194875]
[1740787713951,0.063,147.99,147.94,79.4119875]
[1740787714965,0.063,147.99,147.94,84.8194875]
[1740787715457,0.063,147.99,147.94,79.4119875]
[1740787715837,0.063,147.99,147.93,1.546]
[1740787716032,0.063,147.99,147.93,7.666]
[1740787719452,80.7,147.98,147.91,6.4904]
[1740787719651,99.34964886,147.97,147.89,80.9579875]
[1740787719847,101.34964886,147.97,147.89,80.9579875]
[1740787720851,99.34964886,147.97,147.89,80.9579875]
[1740787721354,18.64964886,147.95,147.89,80.9579875]
[1740787721560,18.64964886,147.95,147.89,1.546]
[1740787723464,18.9264,147.94,147.89,1.546]
[1740787723760,18.9264,147.94,147.87,92.0023875]
[1740787725843,18.64964886,147.93,147.87,12.5904]
[1740787726060,18.64964886,147.93,147.85,81.0236875]
[1740787726342,18.64964886,147.91,147.84,0.03]
[1740787727342,18.9316,147.9,147.84,0.03]
[1740787729143,13.5226,147.9,147.84,0.03]
[1740787729743,5.4086,147.91,147.84,217.4419875]
[1740787730874,13.5207,147.93,147.84,217.4419875]
[1740787731080,18.9286,147.93,147.84,222.8531875]
[1740787731243,18.9286,147.93,147.84,226.16116416]
[1740787732279,5.4079,147.93,147.84,226.16116416]
[1740787733363,94.2181,147.95,147.84,220.74996416]
[1740787733568,94.2181,147.95,147.85,5.4108]
[1740787733569,5.4075,147.94,147.85,5.4108]
[1740787734155,5.4075,147.94,147.85,224.24245414]
[1740787734353,5.4075,147.94,147.85,222.8227875]
[1740787734771,5.4705,147.94,147.85,222.8227875]
[1740787735384,0.063,147.94,147.85,222.8227875]
[1740787735872,18.71264886,147.94,147.85,79.4119875]
[1740787736078,99.41264886,147.94,147.85,79.4119875]
[1740787736284,20.0,147.91,147.84,0.03]
[1740787737670,5.409,147.9,147.84,0.03]
[1740787745951,99.6316,147.9,147.84,0.03]
[1740787746170,18.64964886,147.89,147.84,0.03]
[1740787747064,18.64964886,147.87,147.84,0.03]
[1740787747278,99.34964886,147.87,147.84,0.03]
[1740787748159,5.4105,147.86,147.84,0.03]
[1740787748984,86.1103,147.87,147.84,0.03]
[1740787751185,80.7,147.89,147.84,0.03]
[1740787751370,5.4097,147.88,147.84,0.03]
[1740787753789,18.64964886,147.87,147.84,0.03]
[1740787754288,5.4105,147.86,147.84,0.03]
[1740787754867,0.063,147.94,147.88,20.0]
[1740787755181,0.063,147.94,147.88,99.4119875]
[1740787756480,0.063,147.94,147.89,5.4094]
[1740787756685,0.063,147.94,147.9,6.12]
[1740787762695,0.063,147.94,147.9,11.529]
[1740787765495,0.063,147.94,147.9,13.152]
[1740787765673,0.063,147.94,147.9,26.6746]
[1740787765868,0.063,147.94,147.9,13.152]
[1740787766064,0.063,147.94,147.9,92.5639875]
[1740787766990,0.063,147.94,147.91,6.4347]
[1740787767178,0.063,147.94,147.92,39.03964886]
[1740787767373,0.063,147.94,147.92,40.45845121]
[1740787767574,0.063,147.99,147.98,21.6266]
[1740787767776,0.063,147.99,147.98,275.62903636]
[1740787768294,0.063,148.01,147.99,18.64964886]
[1740787768471,0.063,148.01,147.99,20.06794826]
[1740787768788,10.67069239,148.05,148.03,18.64964886]
[1740787769094,10.67069239,148.05,148.04,6.1]
[1740787769300,10.67069239,148.05,148.04,223.5119875]
[1740787769793,0.063,148.05,148.04,223.5119875]
[1740787770875,0.063,148.05,148.04,85.5119875]
[1740787774794,0.063,148.05,148.04,88.9136309]
[1740787776993,0.063,148.05,148.04,79.4119875]
[1740787777493,0.063,148.05,148.0,79.4119875]
[1740787777681,0.063,148.05,147.99,6.1]
[1740787779579,5.4665,148.05,147.99,6.1]
[1740787780700,18.9754,148.05,147.99,6.1]
[1740787781387,18.915,148.03,147.99,6.1]
[1740787781588,18.915,148.03,147.97,6.1]
[1740787781982,18.915,148.03,147.96,6.1]
[1740787782778,18.915,148.03,147.94,79.4119875]
[1740787782779,18.64964886,148.02,147.94,79.4119875]
[1740787782981,18.64964886,148.02,147.94,6.1]
[1740787783380,20.0,147.99,147.94,6.1]
[1740787783581,18.9214,147.98,147.94,6.1]
[1740787783776,99.6214,147.98,147.94,6.1]
[1740787784000,18.64964886,147.97,147.91,26.1]
[1740787784902,18.64964886,147.97,147.91,6.1]
[1740787785784,5.4068,147.96,147.91,6.1]
[1740787787717,5.4065,147.97,147.91,6.1]
[1740787787905,24.05614886,147.97,147.91,6.1]
[1740787788105,18.64964886,147.96,147.91,6.1]
[1740787789103,18.64964886,147.96,147.89,6.1]
[1740787790105,5.4072,147.95,147.89,6.1]
[1740787797314,86.1069,147.96,147.89,6.1]
[1740787798812,0.03,148.01,147.94,20.0]
[1740787799009,0.03,148.01,147.95,6.1]
[1740787799316,0.03,148.01,147.95,9.56031552]
[1740787801396,0.03,148.01,147.95,14.96731552]
[1740787801597,0.03,148.01,147.96,18.64964886]
[1740787801803,0.03,148.01,147.96,236.06163636]
[1740787801999,0.03,148.01,147.96,217.4119875]
[1740787802320,20.0,147.99,147.95,6.1]
[1740787802824,6.6213,147.98,147.91,223.5119875]
[1740787803119,87.3213,147.98,147.91,6.1]
[1740787804615,5.4065,147.97,147.91,6.1]
[1740787808121,18.9227,147.97,147.91,6.1]
[1740787808329,18.9227,147.97,147.89,79.4119875]
[1740787808625,18.9227,147.97,147.88,3.4173342]
[1740787808927,18.64964886,147.96,147.88,79.4749875]
[1740787810819,18.9252,147.95,147.88,79.4749875]
[1740787811122,100.97184886,147.94,147.88,0.063]
[1740787811327,80.7,147.93,147.88,0.063]
[1740787811815,99.34964886,147.92,147.88,0.063]
[1740787812017,6.4408,147.91,147.88,0.063]
[1740787812900,5.409,147.9,147.88,0.063]
[1740787813824,18.64964886,147.89,147.88,0.063]
[1740787814514,99.34964886,147.89,147.88,0.063]
[1740787815425,6.4408,147.91,147.88,0.063]
[1740787815726,5.4091,147.9,147.88,0.063]
[1740787815931,11.8495,147.91,147.88,0.063]
[1740787817226,80.7,147.93,147.88,0.063]
[1740787817822,7.03,147.94,147.88,0.063]
[1740787818023,87.73,147.94,147.88,0.063]
[1740787818625,80.7,147.94,147.88,0.063]
[1740787818818,80.7,147.97,147.88,79.4749875]
[1740787819219,80.7,147.97,147.88,84.8844875]
[1740787819536,86.1065,147.97,147.88,79.4749875]
[1740787821115,86.1065,147.97,147.88,84.8845875]
[1740787821321,87.1408,148.0,147.89,20.06913268]
[1740787821522,80.7,148.0,147.91,18.64964886]
[1740787821920,80.7,148.0,147.91,20.22444886]
[1740787822423,80.7,148.0,147.91,99.63643636]
[1740787822613,80.7,148.0,147.91,103.01857739]
[1740787822814,86.1054,148.0,147.91,80.9867875]
[1740787823129,99.34964886,147.99,147.9,6.1]
[1740787823323,5.4072,147.95,147.9,6.1]
[1740787823524,5.4072,147.95,147.88,79.4749875]
[1740787825027,18.64964886,147.94,147.88,0.063]
[1740787825439,80.7,147.93,147.88,0.063]
[1740787825737,20.4834,147.95,147.88,0.063]
[1740787825738,99.34964886,147.92,147.88,0.063]
[1740787825921,80.7,147.91,147.88,0.063]
[1740787826323,20.0,147.89,147.88,0.063]
[1740787826930,25.4094,147.89,147.88,0.063]
[1740787827325,44.05904886,147.89,147.88,0.063]
[1740787827822,44.05904886,147.89,147.88,0.0001]
[1740787831139,51.69964886,147.89,147.88,0.0001]
[1740787831522,57.79964886,147.89,147.84,0.03]
[1740787831834,71.32314886,147.89,147.84,0.03]
[1740787832444,18.64964886,147.88,147.84,0.03]
[1740787833445,18.64964886,147.86,147.84,0.03]
[1740787834644,20.0,147.83,147.81,0.0001]
[1740787835435,80.7,147.82,147.81,0.0001]
[1740787835634,86.1119,147.82,147.81,0.0001]
[1740787837646,24.06154886,147.82,147.81,0.0001]
[1740787837854,29.0507,147.87,147.81,0.0001]
[1740787837855,18.936,147.87,147.81,0.0001]
[1740787838036,80.7,147.86,147.81,0.0001]
[1740787839032,5.4108,147.85,147.81,0.0001]
[1740787840835,80.7,147.86,147.81,0.0001]
[1740787841040,86.1106,147.86,147.81,0.0001]
[1740787842556,99.6369,147.86,147.81,0.0001]
[1740787843150,20.0,147.83,147.81,0.0001]
[1740787843450,20.0,147.82,147.81,0.0001]
[1740787844540,12.959467,147.81,147.79,6.1]
[1740787845957,12.959467,147.81,147.76,81.1342875]
[1740787847147,7.547167,147.81,147.76,81.1342875]
[1740787847457,7.547167,147.81,147.76,86.5482875]
[1740787847958,7.547167,147.81,147.77,18.64964886]
[1740787848151,7.547167,147.81,147.78,5.4134]
[1740787850680,0.063,147.89,147.82,24.06144886]
[1740787851259,20.0,147.85,147.8,93.1791875]
[1740787851470,20.0,147.85,147.8,91.5719875]
[1740787851768,80.7,147.87,147.8,6.12]
[1740787851769,20.0,147.84,147.8,6.12]
[1740787852058,20.0,147.84,147.77,6.04]
[1740787852240,20.0,147.84,147.76,90.57022344]
[1740787852241,5.4116,147.83,147.76,90.57022344]
[1740787852437,86.1116,147.83,147.76,87.2021875]
[1740787858261,80.7,147.83,147.76,92.6161875]
[1740787859155,0.063,147.84,147.76,92.6161875]
[1740787861263,0.063,147.84,147.79,18.64964886]
[1740787861558,0.063,147.84,147.81,18.64964886]
[1740787861766,0.063,147.84,147.83,1.5908]
[1740787862363,0.063,147.84,147.83,20.24044886]
[1740787863170,0.063,147.84,147.83,25.65204886]
[1740787864544,0.063,147.84,147.83,105.06403636]
[1740787865147,82.2753,147.98,147.88,18.64964886]
[1740787865368,5.4065,147.97,147.88,109.57133636]
[1740787865747,5.4065,147.97,147.88,247.57133636]
[1740787866565,5.4065,147.97,147.88,250.88508077]
[1740787866770,18.9227,147.97,147.88,223.5119875]
[1740787867243,80.7,147.96,147.88,6.1]
[1740787867869,80.7,147.96,147.87,6.1]
[1740787869246,5.4072,147.95,147.88,18.64964886]
[1740787870455,5.4072,147.95,147.88,98.06163636]
[1740787870656,5.4072,147.95,147.88,103.47133636]
[1740787870887,5.4069,147.96,147.88,104.89075538]
[1740787871091,5.4065,147.97,147.88,104.89075538]
[1740787872654,5.4065,147.97,147.88,108.28601124]
[1740787873055,80.7,147.96,147.88,79.4119875]
[1740787874476,80.7,147.96,147.88,73.5314205]
[1740787875677,5.4072,147.95,147.88,73.5314205]
[1740787876278,1.5536,147.94,147.88,73.5314205]
[1740787877777,5.4079,147.93,147.88,73.5314205]
[1740787878380,82.3166,147.99,147.88,230.18106936]
[1740787878564,5.4063,147.98,147.88,235.59076936]
[1740787878877,7.0224,147.99,147.88,257.95076936]
[1740787879063,1.6166,147.99,147.93,18.64964886]
[1740787879267,0.063,147.99,147.94,6.1]
[1740787880066,0.063,147.99,147.94,11.5073]
[1740787881777,0.063,147.99,147.95,18.64964886]
[1740787881994,0.063,147.99,147.95,20.06826011]
[1740787882365,0.063,147.99,147.95,231.59968061]
[1740787882561,0.063,147.99,147.95,232.18106936]
[1740787883664,0.063,147.99,147.96,1.41849023]
[1740787883864,0.063,147.99,147.98,3.37060555]
[1740787885077,0.063,147.99,147.97,6.1]
[1740787888084,0.063,147.99,147.96,73.5314205]
[1740787888383,20.0,147.95,147.86,211.5314205]
[1740787888908,20.0,147.95,147.87,6.12]
[1740787889188,18.9278,147.93,147.86,73.5314205]
[1740787889483,80.7,147.92,147.83,79.6514205]
[1740787891413,5.4086,147.91,147.88,0.063]
[1740787893303,13.5178,147.96,147.88,0.063]
[1740787893507,13.5178,147.96,147.88,79.7144205]
[1740787893508,5.4068,147.96,147.88,79.7144205]
[1740787898598,18.9239,147.96,147.88,79.7144205]
[1740787899384,20.0,147.93,147.88,73.5944205]
[1740787899707,80.7,147.95,147.88,73.5944205]
[1740787900303,80.7,147.94,147.88,0.063]
[1740787900986,18.9278,147.93,147.88,0.063]
[1740787906089,20.0,147.89,147.83,0.063]
[1740787906288,100.7,147.89,147.83,0.063]
[1740787907613,5.4097,147.88,147.83,0.063]
[1740787908287,18.9341,147.88,147.83,0.063]
[1740787910312,80.7,147.87,147.83,0.063]
[1740787911414,5.4108,147.85,147.83,0.063]
[1740787911600,86.1108,147.85,147.83,0.063]
[1740787914217,5.4097,147.88,147.83,0.063]
[1740787914399,5.409,147.9,147.83,73.5944205]
[1740787914998,5.4087,147.91,147.83,73.5944205]
[1740787915509,20.0,147.91,147.84,18.64964886]
[1740787916191,5.4084,147.92,147.85,5.4108]
[1740787917118,5.4084,147.92,147.83,73.5944205]
[1740787918012,18.9279,147.93,147.83,79.0059205]
[1740787918497,18.9279,147.93,147.84,18.64964886]
[1740787918697,5.4079,147.93,147.84,18.64964886]
[1740787919617,1.6305,147.95,147.84,18.64964886]
[1740787919821,5.4075,147.94,147.85,5.4108]
[1740787920518,18.9264,147.94,147.85,5.4108]
[1740787923502,99.6264,147.94,147.85,78.9422205]
[1740787923925,99.6264,147.94,147.85,73.5314205]
[1740787924448,99.6264,147.94,147.85,78.9422205]
[1740787924723,18.9264,147.94,147.86,18.64964886]
[1740787925037,80.73,147.96,147.88,24.78124886]
[1740787925341,5.4073,147.95,147.88,98.31266936]
[1740787925929,5.4073,147.95,147.88,79.6630205]
[1740787926223,0.03,147.96,147.88,85.0726205]
[1740787927632,80.7,147.95,147.88,79.6630205]
[1740787927930,80.7,147.95,147.88,73.5314205]
[1740787928135,0.03,147.94,147.88,73.5314205]
[1740787928647,5.4375,147.94,147.88,73.5314205]
[1740787930545,18.9564,147.94,147.88,73.5314205]
[1740787931036,20.0,147.92,147.88,73.5314205]
[1740787932840,5.4086,147.91,147.88,73.5314205]
[1740787933044,5.4086,147.91,147.85,0.063]
[1740787933045,5.4086,147.91,147.85,73.5944205]
[1740787933333,80.7,147.9,147.85,0.063]
[1740787935033,18.9329,147.89,147.85,0.063]
[1740787936646,20.0,147.86,147.85,0.063]
[1740787937027,20.0,147.84,147.83,0.063]